[Event "Mongolian Championship Open 2022"]
[Site "Chingis Khentii"]
[Date "2022.05.22"]
[Round "10.5"]
[White "Amartuvshin, Ganzorig"]
[Black "Amilal Munkhdalai"]
[Result "1-0"]
[ECO "E43"]
[WhiteElo "2350"]
[BlackElo "2033"]
[Annotator "TA"]
[PlyCount "125"]
[EventDate "2022.05.12"]
[EventType "tourn"]
[EventCountry "MGL"]
[SourceTitle "playchess.com"]
[Source "ChessBase"]
[SourceQuality "1"]
[TimeControl "40/5400+30:1800+30"]

{[%evp 16,125,27,20,24,37,41,-13,-9,-16,-9,-6,0,-7,-6,0,0,6,0,-24,-25,-43,-43,-46,-41,-66,-66,-66,0,0,0,0,0,-3,-16,-77,-56,-58,-43,-41,-43,-88,22,14,158,146,675,664,669,623,583,44,41,16,13,65,56,40,54,52,223,0,0,0,0,0,0,0,0,0,0,0,0,0,0,0,0,0,146,140,143,132,141,130,6231,12841,7671,7797,29966,29970,29971,29972,29973,29974,29973,29974,29975,29975,29976,29977,29978,29979,29978,29980,29980,29981,29981,29982,29982,29983,29982,29983]} 1. d4 {[%emt 0:00:02]} Nf6 {[%emt 0:00:03]} 2. c4 {[%emt 0:00:06]} e6 {[%emt 0:00:03]} 3. Nc3 {[%emt 0:00:07]} Bb4 {[%emt 0:00:03]} 4. Nf3 {[%emt 0:00:07]} b6 {[%emt 0:00:09]} 5. e3 {[%emt 0:00:08]} Bb7 {[%emt 0:00:09]} 6. Bd3 {[%emt 0:00:09]} O-O {[%emt 0:01:12]} 7. O-O {[%emt 0:00:11]} c5 {[%emt 0:07:28]} 8. Na4 {[%emt 0:00:36]} cxd4 {[%emt 0:01:01]} 9. exd4 {[%emt 0:00:07]} Bxf3 {[%emt 0:08:17] E43: Nimzo-Indian: Rubinstein: 4...b6.} 10. Qxf3 {[%emt 0:00:13]} (10. gxf3 Nc6 $15) 10... Nc6 {[%emt 0:00:06] [#]} 11. Qg3 $146 {[%emt 0:21:49]} ({Better is} 11. Be3 $14) ({Predecessor:} 11. Be3 e5 12. d5 e4 13. Bxe4 Ne5 14. Qf4 Re8 15. Bf3 Bd6 16. Qd4 Nxf3+ 17. gxf3 {0-1 (62) Mamedyarov,S (2800)-Karjakin,S (2781) Paris 2017}) 11... Nxd4 $11 {[%emt 0:13:37] The position is equal.} 12. Bh6 {[%emt 0:01:19][%csl Gh6][%cal Rg3g7]} Nh5 {[%emt 0:13:58] Pair of Knights!} 13. Qg4 {[%emt 0:00:48][%csl LRd4,LRh5] [#]} f5 $1 {[%emt 0:00:07]} 14. Qxd4 {[%emt 0:02:52]} gxh6 {[%emt 0:00:05]} 15. Be2 {[%emt 0:03:40]} Nf6 {[%emt 0:03:58]} 16. a3 {[%emt 0:03:31]} Be7 {[%emt 0:01:32]} 17. Bf3 {[%emt 0:01:42]} Rc8 {[%emt 0:02:47]} 18. Rfe1 {[%emt 0:03:16]} Qc7 {[%emt 0:06:49]} 19. Rac1 {[%emt 0:02:54]} Qd6 $36 {[%emt 0:17:46][%mdl 2048] Black has some pressure.} 20. Qe3 {[%emt 0:06:49]} Ng4 $1 {[%emt 0:02:08]} 21. Bxg4 {[%emt 0:00:21]} Bg5 {[%emt 0:00:07]} ({Black should play} 21... fxg4 $15 22. Rcd1 Qc6) 22. Rcd1 {[%emt 0:00:43]} (22. f4 $2 Bxf4 23. Qc3 Bxc1 $19) 22... Qc7 {[%emt 0:11:57]} 23. Qd4 {[%emt 0:05:06]} (23. f4 Bxf4 24. Qh3 fxg4 25. Qxg4+ Kh8 $17) 23... fxg4 {[%emt 0:00:05]} 24. b3 {[%emt 0:00:17]} h5 {[%emt 0:03:56]} 25. Re2 {[%emt 0:17:53]} (25. Qxd7 $11 Qxd7 26. Rxd7) 25... Rf7 {[%emt 0:02:27]} (25... Rfd8 $5 {[%cal Rd7d5]} 26. Nc3 Qc5 27. Qxc5 Rxc5 $15) 26. Qd3 {[%emt 0:01:30]} Bf6 {[%emt 0:01:11]} 27. Nc3 {[%emt 0:02:08][%cal Ba4c3,Bc3b5,Bb5d6,Bd6f7,Bf7e5][%mdl 32] Black must now prevent Nb5.} d5 {[%emt 0:01:17][%cal Rd5c4]} 28. Nb5 {[%emt 0:01:02]} dxc4 {[%emt 0:01:03]} (28... Qc5 $17 {And now ...a6 would win.} 29. cxd5 exd5) 29. Qb1 $1 {[%emt 0:00:19]} Qf4 {[%emt 0:00:58]} (29... Qc6 $11 30. Nd6 c3 31. Nxc8 (31. Nxf7 c2 $17) 31... Qxc8) 30. Nd6 $16 {[%emt 0:00:22]} Be5 $2 {[%emt 0:00:25][%mdl 8192]} (30... Rd8 $16 31. Nxf7 Rxd1+ 32. Qxd1 Kxf7) 31. g3 $1 $18 {[%emt 0:00:43]} (31. Rxe5 Qxe5 32. Nxf7 (32. Nxc8 Qe2 $11) 32... Kxf7 $14) 31... Qf3 {[%emt 0:00:07]} 32. Nxf7 {[%emt 0:00:07]} (32. Rxe5 Qxf2+ 33. Kh1 Qf3+ 34. Kg1 Qf2+ 35. Kh1 Qf3+ 36. Kg1 Qf2+ $11) 32... Qxe2 {[%emt 0:00:26]} 33. Re1 $2 {[%emt 0:00:07]} (33. Ng5 $1 $18 Kf8 34. Nxe6+ Ke7 35. Nf4 (35. Re1 $2 Qd3 $19) 35... Qxd1+ 36. Qxd1 Bxf4 37. Qe1+ Kd7 38. gxf4) 33... Qd2 $14 {[%emt 0:00:58] ...Bd4 is the strong threat.} 34. Nxe5 {[%emt 0:01:06]} cxb3 {[%emt 0:00:18]} 35. Qe4 {[%emt 0:05:00] Hoping for Nd3.} Rc1 $1 {[%emt 0:00:43]} 36. Rxc1 {[%emt 0:00:12]} (36. Qa8+ Kg7 37. Qxa7+ Kh6 38. Nf7+ Kg6 39. Ne5+ Kh6 40. Nf7+ Kg6 41. Ne5+ Kh6 $11) 36... Qxc1+ {[%emt 0:00:08]} 37. Kg2 {[%emt 0:00:05]} b2 $2 {[%emt 0:00:56]} ({Black should try} 37... Qxa3 $14 38. Qe3 Qd6) 38. Qb7 $2 {[%emt 0:00:25] Dancing on a razor blade.} ({Only move:} 38. Qd4 $1 $18 {[%cal Rd4d8] Qd8+ would kill now.} Qc8 39. Qxb2) 38... Kh8 $11 {[%emt 0:00:11]} 39. Nd7 {[%emt 0:13:35]} Kg7 {[%emt 0:00:55]} (39... b1=Q 40. Qb8+) 40. Qa8 {[%emt 0:00:00] White threatens Qf8+ and mate.} (40. Nc5+ Kh6 41. Qf7 (41. Nxe6 $2 Qc3 $19) 41... Qh1+ 42. Kxh1 b1=Q+ 43. Kg2 bxc5) 40... Qc3 {[%emt 0:00:00]} (40... Qg5 $5 41. Qf8+ Kg6 42. Qg8+ Kf5 43. Qf8+ (43. Qxh7+ Qg6 $11) 43... Kg6 44. Qg8+ Kh6 45. Qf8+ Qg7 46. Qf4+ Kg6 $11) 41. Qf8+ {[%emt 0:00:44]} Kg6 {[%emt 0:00:34]} 42. Qg8+ {[%emt 0:00:21]} Kh6 {[%emt 0:11:56]} 43. Qxe6+ {[%emt 0:00:14]} Kg7 {[%emt 0:00:26]} 44. Qe7+ {[%emt 0:01:22]} Kh6 {[%emt 0:00:17]} 45. Qd6+ {[%emt 0:02:05]} Kg7 {[%emt 0:01:06] ( -> ...Qf3+)} 46. Ne5 {[%emt 0:04:03] Inhibits Qf3+. Intending Qe7+ and mate.} Qf3+ {[%emt 0:00:07] Black is on the road to losing.} 47. Nxf3 $16 {[%emt 0:00:06]} gxf3+ {[%emt 0:00:05]} 48. Kxf3 {[%emt 0:00:05] White wants to mate with Qe5+.} b1=Q {[%emt 0:00:01][%mdl 4096] Endgame KQ-KQ} 49. Qe5+ {[%emt 0:01:03]} Kg6 $2 {[%emt 0:10:07][%mdl 8192] [#]} (49... Kf7 $16) 50. Qe4+ $1 $18 {[%emt 0:00:55]} Qxe4+ {[%emt 0:00:05]} 51. Kxe4 {[%emt 0:00:04] KP-KP} h4 {[%emt 0:00:05]} 52. Kd5 {[%emt 0:00:28] White mates.} Kf5 {[%emt 0:02:22]} 53. f3 {[%emt 0:00:21]} h3 {[%emt 0:08:09]} 54. Kc6 {[%emt 0:03:31]} Ke5 {[%emt 0:00:05]} 55. Kb7 {[%emt 0:00:18]} Kd4 {[%emt 0:00:04]} 56. f4 {[%emt 0:00:21]} Ke4 {[%emt 0:00:21]} 57. Kxa7 {[%emt 0:00:27]} Kf3 {[%emt 0:00:06] [#]} 58. f5 $1 {[%emt 0:00:06]} Kg2 {[%emt 0:00:05]} 59. f6 {[%emt 0:00:04]} Kxh2 {[%emt 0:00:03]} 60. f7 {[%emt 0:00:06]} Kg1 {[%emt 0:00:09]} 61. f8=Q {[%emt 0:00:15]} h2 {[%emt 0:00:07]} 62. Kxb6 {[%emt 0:00:37]} h1=Q {[%emt 0:00:07]} 63. Qc5+ {[%emt 0:00:07] Weighted Error Value: White=0.20 (precise) /Black=0.49} 1-0

[Event "Mongolian Championship Open 2022"]
[Site "Chingis Khentii"]
[Date "2022.05.22"]
[Round "10.6"]
[White "Enkhnar, Enkhbaatar"]
[Black "Munkhgal, Gombosuren"]
[Result "1/2-1/2"]
[ECO "E05"]
[WhiteElo "2368"]
[BlackElo "2502"]
[Annotator "TA"]
[PlyCount "28"]
[EventDate "2022.05.12"]
[EventType "tourn"]
[EventCountry "MGL"]
[SourceTitle "playchess.com"]
[Source "ChessBase"]
[SourceQuality "1"]
[TimeControl "40/5400+30:1800+30"]

{[%evp 27,28,0,20]} 1. d4 {[%emt 0:00:03]} Nf6 {[%emt 0:00:04]} 2. c4 {[%emt 0:00:10]} e6 {[%emt 0:00:03]} 3. Nf3 {[%emt 0:00:05]} d5 {[%emt 0:00:02]} 4. g3 {[%emt 0:00:06]} dxc4 {[%emt 0:00:03]} 5. Bg2 {[%emt 0:00:10]} Be7 {[%emt 0:00:19]} 6. O-O {[%emt 0:00:09]} O-O {[%emt 0:00:02]} 7. Qc2 {[%emt 0:00:06]} a6 {[%emt 0:00:05]} 8. Qxc4 {[%emt 0:00:05]} b5 {[%emt 0:00:02]} 9. Qc2 {[%emt 0:00:05]} Bb7 {[%emt 0:00:03]} 10. Bd2 {[%emt 0:00:05]} Be4 {[%emt 0:00:05] [#]} 11. Qb3 $146 {[%emt 0:00:07]} ({Predecessor:} 11. Qc1 c6 12. a4 b4 13. Bg5 Bxf3 14. Bxf3 Qxd4 15. Rd1 Qa7 16. Nd2 Nd5 17. Nc4 Bxg5 18. Qxg5 h6 19. Qd2 a5 20. e4 Nb6 21. Nxb6 Qxb6 {½-½ (40) Caruana,F (2786)-So,W (2776) Bucharest 2022}) 11... Bd5 {[%emt 0:00:03]} 12. Qc2 {[%emt 0:00:05]} Be4 {[%emt 0:00:03]} 13. Qb3 {[%emt 0:00:04]} Bd5 {[%emt 0:00:02]} 14. Qc2 {[%emt 0:00:06]} Be4 {[%emt 0:00:02]} 1/2-1/2

[Event "Mongolian Championship Open 2022"]
[Site "Chingis Khentii"]
[Date "2022.05.23"]
[Round "11.1"]
[White "Batsuren, Dambasuren"]
[Black "Gundavaa, Bayarsaikhan"]
[Result "1/2-1/2"]
[ECO "E36"]
[WhiteElo "2501"]
[BlackElo "2495"]
[Annotator "TA"]
[PlyCount "60"]
[EventDate "2022.05.12"]
[EventType "tourn"]
[EventCountry "MGL"]
[SourceTitle "playchess.com"]
[Source "ChessBase"]
[SourceQuality "1"]
[TimeControl "40/5400+30:1800+30"]

{[%evp 12,60,25,17,12,9,11,8,19,11,21,21,19,19,25,20,29,25,31,22,19,27,31,22,49,48,87,15,28,14,30,0,0,0,0,0,0,0,0,0,33,35,32,32,39,39,38,27,36,20,20]} 1. d4 {[%emt 0:00:05]} Nf6 {[%emt 0:01:39]} 2. c4 {[%emt 0:00:09]} e6 {[%emt 0:00:31]} 3. Nc3 {[%emt 0:00:11]} Bb4 {[%emt 0:00:10]} 4. Qc2 {[%emt 0:00:08]} O-O {[%emt 0:00:23]} 5. a3 {[%emt 0:00:17]} Bxc3+ {[%emt 0:00:22]} 6. Qxc3 {[%emt 0:00:07]} d5 $1 {[%emt 0:00:22][%mdl 4] outshines the older 6...b6.} 7. Bg5 {[%emt 0:00:16]} dxc4 {[%emt 0:01:41] E36: Nimzo-Indian: Classical: 4...d5 5 a3.} 8. Qxc4 {[%emt 0:00:17]} b6 {[%emt 0:00:17]} 9. Rc1 {[%emt 0:00:58]} Ba6 {[%emt 0:00:23]} 10. Qa4 {[%emt 0:00:20]} Qd7 {[%emt 0:02:37]} (10... c5 {with more complications.} 11. dxc5 h6 12. Bh4 bxc5 13. Nf3 Qd7) 11. Qxd7 {[%emt 0:01:02]} Nbxd7 {[%emt 0:00:07][%cal Bb8d7,Bd7f6,Bf6e4][%mdl 32]} 12. Bxf6 {[%emt 0:00:26]} Nxf6 {[%emt 0:00:54]} 13. e3 {[%emt 0:00:18]} Bxf1 {[%emt 0:01:57]} 14. Kxf1 {[%emt 0:00:21]} c5 {[%emt 0:00:30]} 15. dxc5 {[%emt 0:00:42]} bxc5 {[%emt 0:00:07]} 16. Nf3 {[%emt 0:00:14]} Rab8 {[%emt 0:01:18]} 17. Rc2 {[%emt 0:00:31]} Ne4 {[%emt 0:00:36]} 18. Ke2 {[%emt 0:00:29]} c4 {[%emt 0:01:20]} 19. Nd2 {[%emt 0:01:07]} ({Better is} 19. Ne5 $16) 19... Nd6 {[%emt 0:01:27]} 20. Rhc1 {[%emt 0:00:40] [#]} h6 $146 {[%emt 0:00:47]} ({Predecessor:} 20... g6 21. Nxc4 Nxc4 22. Rxc4 Rxb2+ 23. R1c2 Rfb8 24. Rxb2 Rxb2+ 25. Kf3 Rb6 26. Ra4 a6 {½-½ (38) Grachev,B (2654)-Andreikin,D (2708) Sochi 2017}) 21. Nxc4 {[%emt 0:04:36]} Nxc4 {[%emt 0:00:10]} 22. Rxc4 {[%emt 0:00:06] Threatens to win with b4.} Rxb2+ $11 {[%emt 0:00:09][%mdl 4096] Endgame KRR-KRR} 23. R1c2 {[%emt 0:00:07]} Rfb8 {[%emt 0:01:04]} 24. Rxb2 {[%emt 0:00:18]} Rxb2+ {[%emt 0:00:06] KR-KR} 25. Kf3 {[%emt 0:00:06]} Rb3 {[%emt 0:00:14]} 26. Ra4 {[%emt 0:00:32]} Rb7 {[%emt 0:00:07]} 27. g4 {[%emt 0:00:11]} Kf8 {[%emt 0:00:08]} 28. h4 {[%emt 0:00:25]} Ke7 {[%emt 0:00:06]} 29. Ke4 {[%emt 0:00:31]} g5 {[%emt 0:00:21]} 30. hxg5 {[%emt 0:00:15]} hxg5 {[%emt 0:00:04] Weighted Error Value: White=0.09 (flawless) /Black=0.10 (very precise)} 1/2-1/2

[Event "Mongolian Championship Open 2022"]
[Site "Chingis Khentii"]
[Date "2022.05.23"]
[Round "11.2"]
[White "Agibileg, Uurtsaikh"]
[Black "Amartuvshin, Ganzorig"]
[Result "0-1"]
[ECO "E24"]
[WhiteElo "2440"]
[BlackElo "2350"]
[Annotator "TA"]
[PlyCount "102"]
[EventDate "2022.05.12"]
[EventType "tourn"]
[EventCountry "MGL"]
[SourceTitle "playchess.com"]
[Source "ChessBase"]
[SourceQuality "1"]
[TimeControl "40/5400+30:1800+30"]

{[%evp 13,102,-29,0,-31,-16,-12,0,0,8,2,30,28,26,26,32,35,43,41,50,47,46,41,52,48,62,58,91,96,133,125,136,129,137,123,223,208,184,50,37,16,70,68,77,18,134,0,0,0,0,-38,0,0,36,-217,-212,-222,-207,-212,-215,-211,-154,-175,0,-763,-734,-668,-706,-686,-716,-836,-795,-992,-484,-2783,-1064,-29978,-29980,-29980,-29981,-29981,-29981,-29985,-29986,-29988,-29989,-29990,-29991,-29993,-29993,-29993,-29993]} 1. d4 {[%emt 0:00:30]} Nf6 {[%emt 0:00:06]} 2. c4 {[%emt 0:00:06]} e6 {[%emt 0:00:05]} 3. Nc3 {[%emt 0:00:05]} Bb4 {[%emt 0:00:05]} 4. a3 {[%emt 0:00:25]} Bxc3+ {[%emt 0:00:06]} 5. bxc3 {[%emt 0:00:04]} Nc6 {[%emt 0:00:10][%cal Bb8c6,Bc6a5,Ba5b3,Bb3c1][%mdl 32]} 6. f3 {[%emt 0:00:56]} b6 {[%emt 0:00:23]} 7. e4 {[%emt 0:01:52]} Ba6 {[%emt 0:00:21] 7...Na5 is more advanced technology.} 8. Bd3 {[%emt 0:04:52] E24: Nimzo-Indian: Sämisch: Unusual Black 5th moves and 5...c5 sidelines.} Na5 {[%emt 0:01:17]} 9. Qe2 {[%emt 0:00:20]} Nb3 {[%emt 0:00:14] Pair of Knights!} 10. Rb1 {[%emt 0:00:11] The position is equal.} Nxc1 {[%emt 0:00:09]} 11. Rxc1 {[%emt 0:00:06]} Nh5 {[%emt 0:08:05]} 12. g3 {[%emt 0:04:26] [#] Prevents Nf4.} O-O $146 {[%emt 0:01:44]} ({Predecessor:} 12... Qg5 13. f4 Qa5 14. Nh3 g6 15. O-O O-O-O 16. c5 Bxd3 17. Qxd3 Nf6 18. e5 Nd5 {0-1 (84) Ang,A (2356)-Fulo,N (2141) Auckland 2018}) 13. f4 {[%emt 0:04:31]} g6 {[%emt 0:00:55]} 14. Nf3 {[%emt 0:03:38]} d5 {[%emt 0:02:04]} 15. cxd5 {[%emt 0:02:23]} Bxd3 {[%emt 0:00:09]} 16. Qxd3 {[%emt 0:00:08]} exd5 {[%emt 0:00:05]} 17. e5 {[%emt 0:00:16]} Ng7 {[%emt 0:05:52]} 18. O-O {[%emt 0:05:53]} Qd7 {[%emt 0:02:56]} 19. Nh4 {[%emt 0:00:57]} c5 {[%emt 0:01:18]} 20. f5 {[%emt 0:03:48][%cal Bf4f5,Bf5g6][%mdl 32]} cxd4 {[%emt 0:03:18]} 21. cxd4 {[%emt 0:07:16]} Rac8 {[%emt 0:02:01]} 22. e6 $1 {[%emt 0:03:58]} (22. fxg6 $6 hxg6 23. Ng2 Rxc1 24. Rxc1 Ne6 $11) 22... fxe6 {[%emt 0:00:41]} 23. fxg6 {[%emt 0:00:10]} h5 {[%emt 0:07:04]} (23... h6 $16 {was called for.}) 24. Rxf8+ {[%emt 0:15:04]} Rxf8 {[%emt 0:00:58]} 25. Nf3 {[%emt 0:20:17]} (25. Qe3 $1 $18) 25... Qe7 $14 {[%emt 0:06:20]} 26. Ne5 {[%emt 0:02:59]} Nf5 {[%emt 0:01:06]} ({Better is} 26... Qg5 $1 $11 27. Rc7 Nf5) 27. h4 $1 {[%emt 0:05:09]} b5 {[%emt 0:08:33] [#]} 28. Qf3 {[%emt 0:02:31]} (28. Kg2 $1 $16) 28... Qg7 {[%emt 0:02:38]} (28... a5 $11 {remains equal.}) 29. Kh2 {[%emt 0:06:28]} ({Much weaker is} 29. Qxh5 $6 Nxg3 30. Qg4 Nf5 $11) (29. Rc3 $16) 29... Qh6 $11 {[%emt 0:25:38]} 30. Rc7 {[%emt 0:03:33] aiming for Nd7.} Nxh4 {[%emt 0:01:13]} 31. Qe2 {[%emt 0:02:12] Inhibits Qd2.} Nf5 {[%emt 0:03:16] Hoping for ...h4.} 32. Nd7 {[%emt 0:00:38]} Qxg6 {[%emt 0:02:52]} (32... Nxd4 $5 33. Qb2 Qg7 $11) 33. g4 {[%emt 0:00:05][%mdl 8192] [#]} (33. Qe5 $14 {keeps the upper hand.} h4 34. g4 (34. Nxf8 Qxg3+ 35. Qxg3+ hxg3+ 36. Kh3 Kxf8 $11)) 33... hxg4 $1 $19 {[%emt 0:07:32] And now ...g3+ would win.} 34. Nxf8 {[%emt 0:00:04] [#]} Qh5+ {[%emt 0:00:11]} 35. Kg1 {[%emt 0:01:18]} Nxd4 {[%emt 0:00:30] The board is on fire.} 36. Qf2 {[%emt 0:00:25]} Nf3+ {[%emt 0:00:07]} 37. Kf1 {[%emt 0:00:06]} Nh2+ $2 {[%emt 0:00:11]} (37... Kxf8 $19 38. Qc5+ Kg8 39. Rc8+ Kg7 40. Qc7+ (40. Qe7+ $2 Qf7 $17) 40... Qf7) 38. Ke1 $2 {[%emt 0:00:42][%mdl 8192]} (38. Kg1 $11 Nf3+ 39. Kf1 Kxf8 40. Qc5+ Kg8 41. Rc8+ Kg7 42. Qc7+ (42. Qe7+ Qf7 $17) 42... Qf7 43. Kg2) 38... Qe5+ {[%emt 0:00:07]} 39. Kd1 {[%emt 0:00:55]} Qxc7 {[%emt 0:00:06]} 40. Nxe6 {[%emt 0:00:00][%mdl 4096] Endgame KQN-KQN} Qf7 {[%emt 0:00:00]} 41. Nf4 {[%emt 0:03:51]} Nf3 {[%emt 0:00:43]} 42. Nd3 {[%emt 0:01:18]} Ne5 {[%emt 0:00:46]} (42... d4 $142 43. Nc1 Qc4) 43. Nf4 {[%emt 0:01:50]} (43. Qxf7+ $142 Nxf7 44. Ke2) 43... Ng6 {[%emt 0:00:20]} 44. Qg2 {[%emt 0:00:15]} Qxf4 {[%emt 0:00:26] Black mates.} 45. Qxd5+ {[%emt 0:00:04]} Kg7 {[%emt 0:00:07]} 46. Qxb5 {[%emt 0:00:17]} g3 {[%emt 0:00:17]} 47. Qd7+ {[%emt 0:00:11]} Kh6 {[%emt 0:00:15]} 48. Kc2 {[%emt 0:00:22]} Qf2+ {[%emt 0:00:17]} 49. Kb3 {[%emt 0:00:20]} g2 {[%emt 0:00:10]} 50. Ka4 {[%emt 0:00:33]} g1=Q {[%emt 0:00:13]} 51. Qh3+ {[%emt 0:01:23]} Qh4+ {[%emt 0:00:12] What a bad dream for White.  Weighted Error Value: White=0.81/Black=0.26 (precise)} 0-1

[Event "Mongolian Championship Open 2022"]
[Site "Chingis Khentii"]
[Date "2022.05.23"]
[Round "11.3"]
[White "Munkhgal, Gombosuren"]
[Black "Batchuluun, Tsegmed"]
[Result "1/2-1/2"]
[ECO "A45"]
[WhiteElo "2502"]
[BlackElo "2536"]
[Annotator "TA"]
[PlyCount "21"]
[EventDate "2022.05.12"]
[EventType "tourn"]
[EventCountry "MGL"]
[SourceTitle "playchess.com"]
[Source "ChessBase"]
[SourceQuality "1"]
[TimeControl "40/5400+30:1800+30"]

{[%evp 9,21,6,172,0,0,0,0,0,0,0,0,0,0,0]} 1. d4 {[%emt 0:05:23]} Nf6 {[%emt 0:00:07]} 2. Bf4 {[%emt 0:00:03]} c5 {[%emt 0:00:05]} 3. e3 {[%emt 0:00:05]} Qb6 {[%emt 0:00:14]} 4. Na3 {[%emt 0:00:06]} Qxb2 {[%emt 0:00:07]} 5. Nb5 {[%emt 0:00:06]} Na6 $2 {[%emt 0:00:06] [#]} (5... Nd5 $11) 6. Rb1 $2 {[%emt 0:00:04] A45: Trompowsky Attack.} (6. a3 $1 $18) 6... Qxa2 $11 {[%emt 0:00:09] The position is equal.} 7. Ra1 {[%emt 0:00:03]} Qb2 {[%emt 0:00:07]} 8. Rb1 {[%emt 0:00:04]} ({But not} 8. Rxa6 bxa6 9. Nc7+ Kd8 10. Nxa8 Nd5 $17) 8... Qa2 {[%emt 0:00:07]} 9. Ra1 {[%emt 0:00:04]} Qb2 {[%emt 0:00:06] [#]} 10. Rb1 $146 {[%emt 0:00:05]} ({Reject} 10. Rxa6 bxa6 11. Nc7+ Kd8 12. Nxa8 Nd5 $17) ({Predecessor:} 10. Rxa6 bxa6 11. Nc7+ Kd8 12. Nxa8 Nd5 13. Ne2 Bb7 14. Nc7 Nxf4 15. Nxf4 Kxc7 {1-0 (82) Popov,M (2364)-Leiva Rodriguez,J (2404) Chess.com INT 2017}) 10... Qa2 {[%emt 0:00:06]} 11. Ra1 {[%emt 0:00:29] White did not feel at home in the position after the opening.  Weighted Error Value: White=0.43/Black=0.55} 1/2-1/2

[Event "Mongolian Championship Open 2022"]
[Site "Chingis Khentii"]
[Date "2022.05.23"]
[Round "11.4"]
[White "Amilal Munkhdalai"]
[Black "Enkhnar, Enkhbaatar"]
[Result "1-0"]
[ECO "B33"]
[WhiteElo "2033"]
[BlackElo "2368"]
[Annotator "TA"]
[PlyCount "71"]
[EventDate "2022.05.12"]
[EventType "tourn"]
[EventCountry "MGL"]
[SourceTitle "playchess.com"]
[Source "ChessBase"]
[SourceQuality "1"]
[TimeControl "40/5400+30:1800+30"]

{[%evp 25,71,26,47,46,77,60,65,64,62,64,110,81,100,83,125,100,216,214,314,321,329,318,319,314,297,302,456,468,448,475,478,412,470,456,389,459,409,356,716,663,571,626,896,705,1425,1374,1164,1140]} 1. e4 {[%emt 0:00:03]} c5 {[%emt 0:00:03]} 2. Nf3 {[%emt 0:00:05][%cal Bg1f3,Bf3d4,Bd4b5,Bb5a3,Ba3c2][%mdl 32]} e6 {[%emt 0:00:03]} 3. d4 {[%emt 0:00:05]} cxd4 {[%emt 0:00:03]} 4. Nxd4 {[%emt 0:00:03]} Nf6 {[%emt 0:00:04]} 5. Nc3 {[%emt 0:00:09]} Nc6 {[%emt 0:00:04]} 6. Ndb5 {[%emt 0:00:23]} d6 {[%emt 0:00:07]} 7. Bf4 {[%emt 0:00:05]} e5 {[%emt 0:00:04]} 8. Bg5 {[%emt 0:00:07]} a6 {[%emt 0:00:04]} 9. Na3 {[%emt 0:00:03]} b5 {[%emt 0:00:17]} 10. Nd5 {[%emt 0:00:13]} Be7 {[%emt 0:00:14]} 11. Bxf6 {[%emt 0:00:13]} Bxf6 {[%emt 0:01:01]} 12. c3 {[%emt 0:00:32]} O-O {[%emt 0:02:55]} 13. Nc2 {[%emt 0:00:46]} Be6 {[%emt 0:01:09]} 14. a4 {[%emt 0:02:35] B33: Sicilian: Pelikan and Sveshnikov Variations.} Rb8 {[%emt 0:05:18]} 15. axb5 {[%emt 0:06:50]} axb5 {[%emt 0:00:04]} 16. Be2 {[%emt 0:03:51] White is more active. White is slightly better.} (16. Nxf6+ Qxf6 17. Ne3 (17. Qxd6 Rbc8 $11) 17... Qe7 $11) 16... Bg5 {[%emt 0:05:57]} 17. O-O {[%emt 0:02:38]} f5 {[%emt 0:08:37] [#]} (17... Qc8 $14) 18. Bf3 $146 {[%emt 0:02:32]} ({Predecessor:} 18. Ra6 Qc8 19. Ncb4 Nxb4 20. Nxb4 Be7 21. Ra7 Rb7 22. Rxb7 Qxb7 23. exf5 Bxf5 24. Qd5+ Qxd5 25. Nxd5 {0-1 (41) Reyes Santana,D-Damaso Tacoronte,C (1746) Las Palmas 2018}) 18... Na5 {[%emt 0:11:02]} 19. Ncb4 {[%emt 0:03:11][%cal Oa1a5]} Rc8 {[%emt 0:00:33]} 20. Qe2 {[%emt 0:04:33]} Rc4 {[%emt 0:01:12]} (20... Nb3 $16) 21. exf5 $18 {[%emt 0:16:15]} Bxf5 {[%emt 0:01:42]} (21... Bd7 {was called for.} 22. g4 (22. Ne3 e4 $18) 22... Kh8) 22. Ne3 {[%emt 0:00:14][%cal Bd5e3,Be3f5,Bf5d6,Bd6f7][%mdl 32] Pair of Knights!} e4 {[%emt 0:11:12]} 23. Nxf5 {[%emt 0:06:10]} (23. Nxc4 exf3 24. Qxf3 Nxc4 $15) 23... exf3 {[%emt 0:00:19] [#]} 24. Qe6+ {[%emt 0:00:12]} (24. Qxf3 Rc5 $16) 24... Kh8 {[%emt 0:00:25]} 25. Nxd6 {[%emt 0:00:12]} ({And not} 25. gxf3 Rf6 26. Qd5 Rc5 $15) 25... fxg2 {[%emt 0:00:46] [#]} (25... Rc7 $142 26. Rxa5 Re7) 26. Rfd1 $1 {[%emt 0:00:54] Nf7+ would kill now.} ({Weaker is} 26. Kxg2 Rcf4 27. Rad1 Qe7 $14) 26... Rcf4 {[%emt 0:11:31][%cal Od8b8] [#] Against Nf7+} 27. Nf7+ $1 {[%emt 0:02:15][%mdl 512]} R4xf7 {[%emt 0:00:06]} 28. Rxd8 {[%emt 0:00:04]} Bxd8 {[%emt 0:00:03]} 29. Nd3 {[%emt 0:02:46]} Nc4 {[%emt 0:00:03]} 30. Ra8 {[%emt 0:01:06][%cal Oe6f7] Black must now prevent Qxf7! The board is on fire.} Rf6 {[%emt 0:01:27]} 31. Qh3 {[%emt 0:09:35]} Rh6 $2 {[%emt 0:00:59] [#]} (31... Rd6 32. Kxg2 h6) 32. Qf5 $3 {[%emt 0:07:56][%cal Rf5f8][%mdl 512] White is clearly winning.} Rhf6 {[%emt 0:01:42]} 33. Qxb5 {[%emt 0:01:16]} Nd2 {[%emt 0:00:28]} 34. Qd5 {[%emt 0:01:37]} Be7 {[%emt 0:09:39]} 35. Rxf8+ {[%emt 0:00:08]} Bxf8 {[%emt 0:00:02]} 36. Ne5 {[%emt 0:00:36] White took control after the opening.  Weighted Error Value: White=0.06 (flawless) /Black=0.37} 1-0